[Event "*** Titled Tuesday Blitz"]
[Site "Chess.com"]
[Date "2020.05.26"]
[Round "3"]
[White "Sweafty"]
[Black "Man-Chuk"]
[Result "0-1"]
[WhiteElo "2519"]
[BlackElo "2749"]
[TimeControl "180+1"]
[EndTime "10:28:23 PDT"]
[Termination "Man-Chuk won by resignation"]

1. d4 {[%clk 0:03:00.9]} 1... Nf6 {[%clk 0:02:59.5]} 2. c4 {[%clk 0:03:00.9]}
2... e6 {[%clk 0:02:59.7]} 3. Nc3 {[%clk 0:03:00.8]} 3... Bb4 {[%clk 0:02:59.5]}
4. f3 {[%clk 0:03:01.2]} 4... d5 {[%clk 0:02:52.9]} 5. a3 {[%clk 0:03:00.7]}
5... Be7 {[%clk 0:02:52.5]} 6. e4 {[%clk 0:03:00.2]} 6... dxe4 {[%clk
0:02:53.4]} 7. fxe4 {[%clk 0:03:00.5]} 7... c5 {[%clk 0:02:52.4]} 8. d5 {[%clk
0:02:56.5]} 8... exd5 {[%clk 0:02:51.4]} 9. exd5 {[%clk 0:02:54.3]} 9... O-O
{[%clk 0:02:51.5]} 10. Nf3 {[%clk 0:02:54.5]} 10... Bg4 {[%clk 0:02:50]} 11. Be2
{[%clk 0:02:54.7]} 11... Bd6 {[%clk 0:02:47.7]} 12. O-O {[%clk 0:02:52.7]} 12...
Nbd7 {[%clk 0:02:47.2]} 13. Bg5 {[%clk 0:02:46.2]} 13... Qb8 {[%clk 0:02:38.5]}
14. h3 {[%clk 0:02:35]} 14... Bxf3 {[%clk 0:02:38.3]} 15. Bxf3 {[%clk
0:02:35.6]} 15... h6 {[%clk 0:02:38.5]} 16. Bh4 {[%clk 0:02:34.5]} 16... Bg3
{[%clk 0:02:08.8]} 17. Bxg3 {[%clk 0:02:29.4]} 17... Qxg3 {[%clk 0:02:09.7]} 18.
Qe1 {[%clk 0:02:29.1]} 18... Qxe1 {[%clk 0:01:52.8]} 19. Rfxe1 {[%clk
0:02:26.5]} 19... Nb6 {[%clk 0:01:52.8]} 20. b3 {[%clk 0:02:26]} 20... Nc8
{[%clk 0:01:32.6]} 21. b4 {[%clk 0:01:55.8]} 21... b6 {[%clk 0:01:10.7]} 22.
bxc5 {[%clk 0:01:54.2]} 22... bxc5 {[%clk 0:01:10.3]} 23. Nb5 {[%clk 0:01:42.3]}
23... a6 {[%clk 0:01:00.9]} 24. Nc3 {[%clk 0:01:35.6]} 24... Nd6 {[%clk
0:01:00.4]} 25. Na4 {[%clk 0:01:26.2]} 25... Rac8 {[%clk 0:01:00.2]} 26. Rac1
{[%clk 0:01:25.2]} 26... Rc7 {[%clk 0:01:00.5]} 27. Nb2 {[%clk 0:01:14.2]} 27...
Rb8 {[%clk 0:00:55.4]} 28. Nd1 {[%clk 0:01:09.3]} 28... Nd7 {[%clk 0:00:48.5]}
29. Bg4 {[%clk 0:01:03.8]} 29... Nf6 {[%clk 0:00:27.8]} 30. Bf3 {[%clk
0:01:01.8]} 30... Rb3 {[%clk 0:00:26.9]} 31. a4 {[%clk 0:00:57.3]} 31... Rb4
{[%clk 0:00:25.5]} 32. Ne3 {[%clk 0:00:56.8]} 32... Rcb7 {[%clk 0:00:16.9]} 33.
a5 {[%clk 0:00:44]} 33... Ra4 {[%clk 0:00:16.8]} 34. Rb1 {[%clk 0:00:43.4]}
34... Rbb4 {[%clk 0:00:15.7]} 35. Rxb4 {[%clk 0:00:41.9]} 35... Rxb4 {[%clk
0:00:16.6]} 36. Rc1 {[%clk 0:00:39.7]} 36... g6 {[%clk 0:00:16.5]} 37. Kf2
{[%clk 0:00:28.6]} 37... Kg7 {[%clk 0:00:16.6]} 38. g4 {[%clk 0:00:26.6]} 38...
Nd7 {[%clk 0:00:16.8]} 39. Be2 {[%clk 0:00:24.8]} 39... Ne5 {[%clk 0:00:16.8]}
40. h4 {[%clk 0:00:22.3]} 40... Rb2 {[%clk 0:00:16.9]} 41. h5 {[%clk 0:00:20.2]}
41... Ne4+ {[%clk 0:00:16.2]} 42. Ke1 {[%clk 0:00:19.1]} 42... Kf6 {[%clk
0:00:16.3]} 43. hxg6 {[%clk 0:00:19.1]} 43... fxg6 {[%clk 0:00:17.2]} 44. Rc2
{[%clk 0:00:16.3]} 44... Rb1+ {[%clk 0:00:15.6]} 45. Bd1 {[%clk 0:00:15.6]}
45... Kg5 {[%clk 0:00:13.4]} 46. Ra2 {[%clk 0:00:14]} 46... Nd3+ {[%clk
0:00:12.9]} 47. Ke2 {[%clk 0:00:13.8]} 47... Nc1+ {[%clk 0:00:13.1]} 48. Kf3
{[%clk 0:00:13.1]} 48... Nxa2 {[%clk 0:00:13]} 49. Kxe4 {[%clk 0:00:13.5]} 49...
Nc3+ {[%clk 0:00:13.7]} 50. Kd3 {[%clk 0:00:13.4]} 50... Nxd1 {[%clk 0:00:14]}
51. Nxd1 {[%clk 0:00:14.1]} 51... Rxd1+ {[%clk 0:00:13.9]} 0-1

[Event "*** Titled Tuesday Blitz"]
[Site "Chess.com"]
[Date "2020.05.26"]
[Round "3"]
[White "ElliPaehtz"]
[Black "kuban1991"]
[Result "1/2-1/2"]
[WhiteElo "2496"]
[BlackElo "2720"]
[TimeControl "180+1"]
[EndTime "10:28:24 PDT"]
[Termination "Game drawn by agreement"]

1. d4 {[%clk 0:03:00.9]} 1... g6 {[%clk 0:02:59.5]} 2. Nf3 {[%clk 0:02:59.9]}
2... Bg7 {[%clk 0:02:59.9]} 3. c3 {[%clk 0:02:58.6]} 3... Nf6 {[%clk 0:02:57.8]}
4. Bg5 {[%clk 0:02:57.7]} 4... O-O {[%clk 0:02:54.5]} 5. Nbd2 {[%clk 0:02:57.1]}
5... d5 {[%clk 0:02:55]} 6. e3 {[%clk 0:02:56.9]} 6... c5 {[%clk 0:02:55.6]} 7.
Be2 {[%clk 0:02:56.3]} 7... Qb6 {[%clk 0:02:55.4]} 8. Qb3 {[%clk 0:02:55.3]}
8... Nc6 {[%clk 0:02:54.8]} 9. O-O {[%clk 0:02:52.3]} 9... c4 {[%clk 0:02:54.9]}
10. Qa3 {[%clk 0:02:51]} 10... Bf5 {[%clk 0:02:53.7]} 11. h3 {[%clk 0:02:44.1]}
11... Rfc8 {[%clk 0:02:51.9]} 12. b3 {[%clk 0:02:40.2]} 12... cxb3 {[%clk
0:02:47.7]} 13. axb3 {[%clk 0:02:39.7]} 13... a5 {[%clk 0:02:47.6]} 14. Rfc1
{[%clk 0:02:30.6]} 14... h6 {[%clk 0:02:46.3]} 15. Bf4 {[%clk 0:02:29.7]} 15...
g5 {[%clk 0:02:45.1]} 16. Bg3 {[%clk 0:02:27.8]} 16... Bf8 {[%clk 0:02:33.1]}
17. Ne5 {[%clk 0:02:24.5]} 17... e6 {[%clk 0:02:25.9]} 18. Qa2 {[%clk
0:02:20.6]} 18... Nxe5 {[%clk 0:02:16.9]} 19. Bxe5 {[%clk 0:02:16.6]} 19... Nd7
{[%clk 0:02:06.1]} 20. Bg3 {[%clk 0:02:15.4]} 20... Bg6 {[%clk 0:01:56.8]} 21.
h4 {[%clk 0:02:14]} 21... Bd6 {[%clk 0:01:48.6]} 22. Bxd6 {[%clk 0:02:01.2]}
22... Qxd6 {[%clk 0:01:49.5]} 23. hxg5 {[%clk 0:02:01.3]} 23... hxg5 {[%clk
0:01:49]} 24. Qa3 {[%clk 0:01:59.2]} 24... Qxa3 {[%clk 0:01:09]} 25. Rxa3 {[%clk
0:01:58.2]} 25... e5 {[%clk 0:01:07.3]} 26. Bb5 {[%clk 0:01:48.9]} 26... Nf8
{[%clk 0:01:02.5]} 27. Nf3 {[%clk 0:01:45.7]} 27... exd4 {[%clk 0:00:54.7]} 28.
Nxd4 {[%clk 0:01:42.3]} 28... Rc7 {[%clk 0:00:44]} 29. Kf1 {[%clk 0:01:31.6]}
29... Ne6 {[%clk 0:00:41.8]} 30. Ke2 {[%clk 0:01:27.6]} 30... b6 {[%clk
0:00:37.2]} 31. Kd2 {[%clk 0:01:21.8]} 31... Rac8 {[%clk 0:00:35.1]} 32. Raa1
{[%clk 0:01:15.9]} 32... Kg7 {[%clk 0:00:34.1]} 33. Be2 {[%clk 0:01:10.5]} 33...
Nc5 {[%clk 0:00:28.7]} 34. f3 {[%clk 0:01:07.9]} 34... Ne6 {[%clk 0:00:24.2]}
35. Nb5 {[%clk 0:01:05.4]} 35... Rc5 {[%clk 0:00:22.3]} 36. b4 {[%clk
0:00:56.2]} 36... axb4 {[%clk 0:00:20.3]} 37. cxb4 {[%clk 0:00:55.8]} 37... Rxc1
{[%clk 0:00:20.6]} 38. Rxc1 {[%clk 0:00:56.7]} 38... Ra8 {[%clk 0:00:17.8]} 39.
Nc3 {[%clk 0:00:53]} 39... d4 {[%clk 0:00:17.7]} 40. exd4 {[%clk 0:00:48.8]}
40... Nxd4 {[%clk 0:00:18.6]} 41. Bc4 {[%clk 0:00:45]} 41... Rc8 {[%clk
0:00:14.4]} 42. Bd5 {[%clk 0:00:41.8]} 42... Rd8 {[%clk 0:00:14.3]} 43. Ke3
{[%clk 0:00:38.5]} 43... Nc2+ {[%clk 0:00:11.8]} 44. Ke2 {[%clk 0:00:32.8]}
44... Nxb4 {[%clk 0:00:12.7]} 45. Be4 {[%clk 0:00:32.8]} 45... Bxe4 {[%clk
0:00:11.6]} 46. Nxe4 {[%clk 0:00:31.9]} 46... Nd3 {[%clk 0:00:11.8]} 47. Rb1
{[%clk 0:00:30.4]} 47... Nf4+ {[%clk 0:00:11.6]} 48. Kf2 {[%clk 0:00:29.6]}
48... Ne6 {[%clk 0:00:08.5]} 49. Rxb6 {[%clk 0:00:28.1]} 49... Kg6 {[%clk
0:00:08.7]} 50. Kg3 {[%clk 0:00:26.1]} 50... Ra8 {[%clk 0:00:08.9]} 51. Nc5
{[%clk 0:00:25.6]} 51... Kf6 {[%clk 0:00:07.7]} 52. Nxe6 {[%clk 0:00:24.7]}
52... fxe6 {[%clk 0:00:08.6]} 53. Rb7 {[%clk 0:00:24]} 53... Ra4 {[%clk
0:00:08.9]} 54. Rb3 {[%clk 0:00:23.3]} 54... Rc4 {[%clk 0:00:07.1]} 1/2-1/2

[Event "*** Titled Tuesday Blitz"]
[Site "Chess.com"]
[Date "2020.05.26"]
[Round "3"]
[White "Grischuk"]
[Black "Shubinkirill2003"]
[Result "1-0"]
[WhiteElo "3094"]
[BlackElo "2604"]
[TimeControl "180+1"]
[EndTime "10:28:24 PDT"]
[Termination "Grischuk won by resignation"]

1. Nf3 {[%clk 0:03:00.9]} 1... Nf6 {[%clk 0:02:59.6]} 2. g3 {[%clk 0:03:00.9]}
2... b5 {[%clk 0:02:59.2]} 3. Na3 {[%clk 0:02:49.3]} 3... a6 {[%clk 0:02:55]} 4.
c4 {[%clk 0:02:49.1]} 4... Bb7 {[%clk 0:02:55]} 5. Bg2 {[%clk 0:02:47.7]} 5...
e5 {[%clk 0:02:50.3]} 6. b3 {[%clk 0:02:34.6]} 6... Bc5 {[%clk 0:02:33.9]} 7.
O-O {[%clk 0:02:32.2]} 7... Qe7 {[%clk 0:02:24.7]} 8. Nc2 {[%clk 0:02:14.3]}
8... O-O {[%clk 0:02:09.7]} 9. d4 {[%clk 0:02:02.6]} 9... exd4 {[%clk
0:02:07.8]} 10. cxb5 {[%clk 0:02:03.2]} 10... axb5 {[%clk 0:02:02.7]} 11. Ncxd4
{[%clk 0:02:03.8]} 11... Bxd4 {[%clk 0:01:53.8]} 12. Qxd4 {[%clk 0:01:57.6]}
12... c5 {[%clk 0:01:46.2]} 13. Qb2 {[%clk 0:01:36.5]} 13... d6 {[%clk
0:01:32.5]} 14. Rd1 {[%clk 0:01:28.3]} 14... Re8 {[%clk 0:01:21.7]} 15. Bf4
{[%clk 0:01:13.6]} 15... Qxe2 {[%clk 0:01:09.4]} 16. Rd2 {[%clk 0:01:00]} 16...
Qe6 {[%clk 0:00:54.3]} 17. Rxd6 {[%clk 0:00:57.9]} 17... Qc8 {[%clk 0:00:50.7]}
18. Rxf6 {[%clk 0:00:56.1]} 18... gxf6 {[%clk 0:00:49.3]} 19. Qxf6 {[%clk
0:00:44.1]} 19... Qe6 {[%clk 0:00:36.2]} 20. Qg5+ {[%clk 0:00:42.5]} 20... Qg6
{[%clk 0:00:34.9]} 21. Qxc5 {[%clk 0:00:42.2]} 21... Nd7 {[%clk 0:00:28.8]} 22.
Qxb5 {[%clk 0:00:41.1]} 22... Bc6 {[%clk 0:00:28.6]} 23. Qf1 {[%clk 0:00:32.7]}
23... Rac8 {[%clk 0:00:23.3]} 24. h3 {[%clk 0:00:26.9]} 24... Nc5 {[%clk
0:00:17.4]} 25. Rd1 {[%clk 0:00:24.6]} 25... Qg7 {[%clk 0:00:10.6]} 26. Nh4
{[%clk 0:00:16.2]} 26... Bxg2 {[%clk 0:00:09.2]} 27. Qxg2 {[%clk 0:00:17.1]}
27... Ne6 {[%clk 0:00:09]} 28. Be3 {[%clk 0:00:13.5]} 28... Qf6 {[%clk
0:00:06.9]} 29. Qe4 {[%clk 0:00:13.1]} 29... Red8 {[%clk 0:00:06.2]} 30. Rxd8+
{[%clk 0:00:11.9]} 30... Rxd8 {[%clk 0:00:07.1]} 31. Kg2 {[%clk 0:00:11.9]}
31... h5 {[%clk 0:00:06.3]} 32. Nf5 {[%clk 0:00:09.8]} 32... Ng5 {[%clk
0:00:05.7]} 33. Bxg5 {[%clk 0:00:07.6]} 33... Qxg5 {[%clk 0:00:05.4]} 34. b4
{[%clk 0:00:06.7]} 34... Qf6 {[%clk 0:00:03.7]} 35. a4 {[%clk 0:00:05.7]} 35...
Kf8 {[%clk 0:00:03.8]} 36. Ne3 {[%clk 0:00:03.6]} 36... Re8 {[%clk 0:00:03.5]}
37. Qf3 {[%clk 0:00:03.3]} 37... Qe6 {[%clk 0:00:02]} 38. a5 {[%clk 0:00:02.9]}
38... Qb3 {[%clk 0:00:01.6]} 39. Qxh5 {[%clk 0:00:02.4]} 39... Qxb4 {[%clk
0:00:01.7]} 40. Qh8+ {[%clk 0:00:02.7]} 40... Ke7 {[%clk 0:00:02]} 41. Qe5+
{[%clk 0:00:02.8]} 41... Kf8 {[%clk 0:00:02]} 42. Qh8+ {[%clk 0:00:03.2]} 42...
Ke7 {[%clk 0:00:02.3]} 43. Nf5+ {[%clk 0:00:02.7]} 43... Ke6 {[%clk 0:00:01.9]}
44. Qxe8+ {[%clk 0:00:02.1]} 44... Kxf5 {[%clk 0:00:02]} 45. Qxf7+ {[%clk
0:00:02.6]} 1-0

[Event "*** Titled Tuesday Blitz"]
[Site "Chess.com"]
[Date "2020.05.26"]
[Round "3"]
[White "ChessyInstinct"]
[Black "Norival"]
[Result "0-1"]
[WhiteElo "2409"]
[BlackElo "2643"]
[TimeControl "180+1"]
[EndTime "10:28:24 PDT"]
[Termination "Norival won by checkmate"]

1. d4 {[%clk 0:03:00.9]} 1... d5 {[%clk 0:02:45.7]} 2. c4 {[%clk 0:03:01.1]}
2... c6 {[%clk 0:02:43.6]} 3. Nf3 {[%clk 0:03:01]} 3... Nf6 {[%clk 0:02:43.4]}
4. Nc3 {[%clk 0:03:00.8]} 4... a6 {[%clk 0:02:20]} 5. a4 {[%clk 0:02:57.6]} 5...
dxc4 {[%clk 0:02:17]} 6. e3 {[%clk 0:02:41.8]} 6... Bg4 {[%clk 0:02:16.5]} 7.
Bxc4 {[%clk 0:02:39]} 7... e6 {[%clk 0:02:17.1]} 8. h3 {[%clk 0:02:32.6]} 8...
Bh5 {[%clk 0:02:15.8]} 9. g4 {[%clk 0:02:14.7]} 9... Bg6 {[%clk 0:02:15.3]} 10.
Ne5 {[%clk 0:02:15.3]} 10... Nbd7 {[%clk 0:02:07]} 11. Nxg6 {[%clk 0:02:14.6]}
11... hxg6 {[%clk 0:02:07.9]} 12. e4 {[%clk 0:02:13]} 12... Bb4 {[%clk
0:02:05.3]} 13. Bd3 {[%clk 0:01:29.2]} 13... e5 {[%clk 0:01:57.2]} 14. Qb3
{[%clk 0:00:55.6]} 14... Qe7 {[%clk 0:01:36.1]} 15. g5 {[%clk 0:00:50.3]} 15...
exd4 {[%clk 0:01:31.3]} 16. gxf6 {[%clk 0:00:50.1]} 16... gxf6 {[%clk
0:01:29.9]} 17. Bd2 {[%clk 0:00:37.2]} 17... Nc5 {[%clk 0:01:11.9]} 18. Qc4
{[%clk 0:00:25.7]} 18... Nxd3+ {[%clk 0:01:08.6]} 19. Qxd3 {[%clk 0:00:26.6]}
19... dxc3 {[%clk 0:01:08.2]} 20. bxc3 {[%clk 0:00:21.9]} 20... Rd8 {[%clk
0:01:04]} 21. Qe2 {[%clk 0:00:19.2]} 21... Bc5 {[%clk 0:00:57.4]} 22. h4 {[%clk
0:00:16]} 22... Rh5 {[%clk 0:00:56.3]} 23. Rb1 {[%clk 0:00:06.6]} 23... Rd7
{[%clk 0:00:55.3]} 24. Be3 {[%clk 0:00:03]} 24... Qxe4 {[%clk 0:00:51.5]} 25.
Bxc5 {[%clk 0:00:03.2]} 25... Qxe2+ {[%clk 0:00:51.5]} 26. Kxe2 {[%clk
0:00:04.1]} 26... Rxc5 {[%clk 0:00:51.6]} 27. Rb3 {[%clk 0:00:03.7]} 27... Ke7
{[%clk 0:00:50.2]} 28. h5 {[%clk 0:00:02.1]} 28... Rxh5 {[%clk 0:00:49.5]} 29.
Rxh5 {[%clk 0:00:01.9]} 29... gxh5 {[%clk 0:00:50.4]} 30. Rb1 {[%clk 0:00:02.5]}
30... b5 {[%clk 0:00:44.6]} 31. axb5 {[%clk 0:00:01.9]} 31... axb5 {[%clk
0:00:45.5]} 32. Rh1 {[%clk 0:00:02.5]} 32... Rd5 {[%clk 0:00:45.8]} 33. Rh4
{[%clk 0:00:02.8]} 33... Ke6 {[%clk 0:00:45.6]} 34. Ke3 {[%clk 0:00:02.1]} 34...
Re5+ {[%clk 0:00:45.7]} 35. Kd3 {[%clk 0:00:02.2]} 35... c5 {[%clk 0:00:45.2]}
36. Rh3 {[%clk 0:00:01.5]} 36... Rd5+ {[%clk 0:00:44.1]} 37. Kc2 {[%clk
0:00:01.8]} 37... c4 {[%clk 0:00:43.8]} 38. Rh2 {[%clk 0:00:01.2]} 38... Rg5
{[%clk 0:00:41]} 39. Kb2 {[%clk 0:00:01.6]} 39... Kf5 {[%clk 0:00:40.7]} 40. Ka3
{[%clk 0:00:02.1]} 40... Kg4 {[%clk 0:00:40.8]} 41. Kb4 {[%clk 0:00:02.5]} 41...
h4 {[%clk 0:00:40.5]} 42. f3+ {[%clk 0:00:02.1]} 42... Kg3 {[%clk 0:00:40.4]}
43. Rh1 {[%clk 0:00:02.6]} 43... h3 {[%clk 0:00:40.4]} 44. f4 {[%clk 0:00:02.7]}
44... Rh5 {[%clk 0:00:39.2]} 45. f5 {[%clk 0:00:02.2]} 45... h2 {[%clk
0:00:39.2]} 46. Kxb5 {[%clk 0:00:02.5]} 46... Kg2 {[%clk 0:00:37.1]} 47. Rxh2+
{[%clk 0:00:02.4]} 47... Rxh2 {[%clk 0:00:35.3]} 48. Kxc4 {[%clk 0:00:03.3]}
48... Rh5 {[%clk 0:00:35.7]} 49. Kd4 {[%clk 0:00:03.7]} 49... Rxf5 {[%clk
0:00:35.9]} 50. c4 {[%clk 0:00:04.6]} 50... Kf3 {[%clk 0:00:35.5]} 51. c5 {[%clk
0:00:05.5]} 51... Re5 {[%clk 0:00:35.3]} 52. c6 {[%clk 0:00:05.8]} 52... Kg4
{[%clk 0:00:34.4]} 53. c7 {[%clk 0:00:05.6]} 53... Re8 {[%clk 0:00:35.1]} 54.
Kd5 {[%clk 0:00:05.9]} 54... Rc8 {[%clk 0:00:35.5]} 55. Kd6 {[%clk 0:00:06.3]}
55... f5 {[%clk 0:00:36.1]} 56. Kd7 {[%clk 0:00:06.6]} 56... Rxc7+ {[%clk
0:00:36.7]} 57. Kxc7 {[%clk 0:00:07.5]} 57... f4 {[%clk 0:00:37.6]} 58. Kd7
{[%clk 0:00:08.4]} 58... f3 {[%clk 0:00:38.4]} 59. Ke7 {[%clk 0:00:09.3]} 59...
f2 {[%clk 0:00:39.3]} 60. Kxf7 {[%clk 0:00:10.2]} 60... f1=Q+ {[%clk 0:00:39.5]}
61. Kg6 {[%clk 0:00:11.1]} 61... Qf5+ {[%clk 0:00:39.8]} 62. Kg7 {[%clk
0:00:11.4]} 62... Qe6 {[%clk 0:00:39.9]} 63. Kh7 {[%clk 0:00:11.6]} 63... Kg5
{[%clk 0:00:39.1]} 64. Kg7 {[%clk 0:00:12.1]} 64... Qd7+ {[%clk 0:00:39.2]} 65.
Kf8 {[%clk 0:00:11.7]} 65... Kg6 {[%clk 0:00:39.2]} 66. Kg8 {[%clk 0:00:12.6]}
66... Qe8# {[%clk 0:00:39.5]} 0-1

[Event "*** Titled Tuesday Blitz"]
[Site "Chess.com"]
[Date "2020.05.26"]
[Round "3"]
[White "okriak"]
[Black "nikitakhoroshev"]
[Result "1/2-1/2"]
[WhiteElo "2712"]
[BlackElo "2433"]
[TimeControl "180+1"]
[EndTime "10:28:25 PDT"]
[Termination "Game drawn by agreement"]

1. Nf3 {[%clk 0:02:44.6]} 1... d6 {[%clk 0:02:49.5]} 2. e4 {[%clk 0:02:44]} 2...
Nf6 {[%clk 0:02:48.9]} 3. Nc3 {[%clk 0:02:43.2]} 3... e5 {[%clk 0:02:49.4]} 4.
d4 {[%clk 0:02:42.4]} 4... Nbd7 {[%clk 0:02:49.8]} 5. Bc4 {[%clk 0:02:42.1]}
5... Be7 {[%clk 0:02:49.9]} 6. O-O {[%clk 0:02:41.9]} 6... O-O {[%clk
0:02:49.4]} 7. Qe2 {[%clk 0:02:41.2]} 7... c6 {[%clk 0:02:47.8]} 8. a4 {[%clk
0:02:40.3]} 8... a5 {[%clk 0:02:38.9]} 9. Rd1 {[%clk 0:02:39.4]} 9... Qc7 {[%clk
0:02:38.3]} 10. h3 {[%clk 0:02:36.2]} 10... h6 {[%clk 0:02:32.2]} 11. dxe5
{[%clk 0:02:33.1]} 11... dxe5 {[%clk 0:02:31.5]} 12. Be3 {[%clk 0:02:32.4]}
12... Bb4 {[%clk 0:02:20.8]} 13. Nd2 {[%clk 0:02:27.1]} 13... Bc5 {[%clk
0:02:14.4]} 14. Nf1 {[%clk 0:02:25.8]} 14... Qb6 {[%clk 0:02:01.3]} 15. Bxc5
{[%clk 0:02:25]} 15... Nxc5 {[%clk 0:01:59.6]} 16. b3 {[%clk 0:02:24.8]} 16...
Ne6 {[%clk 0:01:53.3]} 17. Bxe6 {[%clk 0:02:23.5]} 17... Bxe6 {[%clk 0:01:54.2]}
18. Qe3 {[%clk 0:02:18.9]} 18... Qxe3 {[%clk 0:01:48.2]} 19. Nxe3 {[%clk
0:02:18.6]} 19... Rfd8 {[%clk 0:01:47.6]} 20. Rxd8+ {[%clk 0:02:16]} 20... Rxd8
{[%clk 0:01:47.1]} 21. Rd1 {[%clk 0:02:16.6]} 21... Rxd1+ {[%clk 0:01:46.7]} 22.
Nexd1 {[%clk 0:02:16.6]} 22... Kf8 {[%clk 0:01:46.8]} 23. f3 {[%clk 0:02:15.9]}
23... Ke7 {[%clk 0:01:47]} 24. Kf2 {[%clk 0:02:15.9]} 24... Kd6 {[%clk
0:01:47.3]} 25. Ke3 {[%clk 0:02:12.6]} 25... Nd7 {[%clk 0:01:47.1]} 26. h4
{[%clk 0:02:10.9]} 26... Kc5 {[%clk 0:01:45.2]} 27. Kd2 {[%clk 0:02:10.4]} 27...
b5 {[%clk 0:01:43.8]} 28. g3 {[%clk 0:02:06.6]} 28... Nb6 {[%clk 0:01:43.2]} 29.
Nb2 {[%clk 0:02:04.6]} 29... b4 {[%clk 0:01:42.1]} 30. Nd3+ {[%clk 0:02:02.1]}
30... Kd6 {[%clk 0:01:42.6]} 31. Nd1 {[%clk 0:01:58.1]} 31... c5 {[%clk
0:01:42.5]} 32. c4 {[%clk 0:01:49.2]} 32... bxc3+ {[%clk 0:01:34.2]} 33. Nxc3
{[%clk 0:01:42.9]} 33... c4 {[%clk 0:01:28.8]} 34. Nb5+ {[%clk 0:01:38.3]} 34...
Ke7 {[%clk 0:01:23.3]} 35. bxc4 {[%clk 0:01:24.7]} 35... Nxc4+ {[%clk
0:01:24.2]} 36. Kc3 {[%clk 0:01:24.6]} 36... f6 {[%clk 0:01:24.2]} 37. Nc5
{[%clk 0:01:20.4]} 37... Nb6 {[%clk 0:01:23.7]} 38. h5 {[%clk 0:01:04.9]} 38...
Bf7 {[%clk 0:01:19.2]} 39. g4 {[%clk 0:01:04.3]} 39... Be8 {[%clk 0:01:18.6]}
40. Nc7 {[%clk 0:00:55.6]} 40... Bxa4 {[%clk 0:01:14.7]} 41. Nxa4 {[%clk
0:00:51]} 41... Nxa4+ {[%clk 0:01:15.6]} 42. Kc4 {[%clk 0:00:51.5]} 42... Nb2+
{[%clk 0:01:12.9]} 43. Kb5 {[%clk 0:00:46.9]} 43... Nd3 {[%clk 0:01:06.9]} 44.
Nd5+ {[%clk 0:00:46.7]} 44... Kf7 {[%clk 0:01:06.7]} 45. Kxa5 {[%clk 0:00:44.5]}
45... Ne1 {[%clk 0:01:06]} 46. f4 {[%clk 0:00:44.7]} 46... exf4 {[%clk
0:01:04.4]} 47. Nxf4 {[%clk 0:00:44.7]} 47... Nf3 {[%clk 0:01:02.9]} 48. Ng2
{[%clk 0:00:40.5]} 48... Nd2 {[%clk 0:00:59.6]} 49. Kb4 {[%clk 0:00:40.1]} 49...
Nxe4 {[%clk 0:00:57.3]} 50. Kc4 {[%clk 0:00:40.4]} 50... Nf2 {[%clk 0:00:55]}
51. Ne3 {[%clk 0:00:40.1]} 51... Ke6 {[%clk 0:00:55.4]} 52. Kd4 {[%clk
0:00:39.9]} 52... Nh3 {[%clk 0:00:51.4]} 53. Ke4 {[%clk 0:00:39.5]} 53... Ng5+
{[%clk 0:00:50.4]} 54. Kf4 {[%clk 0:00:39.6]} 54... Kf7 {[%clk 0:00:50.4]} 55.
Nf5 {[%clk 0:00:39.4]} 55... Ne6+ {[%clk 0:00:49]} 56. Ke4 {[%clk 0:00:39.6]}
56... Nc5+ {[%clk 0:00:47.6]} 57. Kf4 {[%clk 0:00:39.6]} 57... Nd3+ {[%clk
0:00:46.9]} 58. Ke4 {[%clk 0:00:39.5]} 58... Ne5 {[%clk 0:00:46.6]} 59. Kf4
{[%clk 0:00:39.6]} 59... Kf8 {[%clk 0:00:38.1]} 60. Nd6 {[%clk 0:00:39.1]} 60...
Nf7 {[%clk 0:00:30.8]} 61. Nf5 {[%clk 0:00:38.2]} 61... Ng5 {[%clk 0:00:28.9]}
62. Nd6 {[%clk 0:00:37.7]} 62... Nf7 {[%clk 0:00:28.6]} 63. Nf5 {[%clk
0:00:37.1]} 63... Ne5 {[%clk 0:00:20.1]} 1/2-1/2

[Event "*** Titled Tuesday Blitz"]
[Site "Chess.com"]
[Date "2020.05.26"]
[Round "3"]
[White "AlexOstrovskiy"]
[Black "Grandelicious"]
[Result "1-0"]
[WhiteElo "2619"]
[BlackElo "2786"]
[TimeControl "180+1"]
[EndTime "10:28:26 PDT"]
[Termination "AlexOstrovskiy won by resignation"]

1. d4 {[%clk 0:02:59.7]} 1... d5 {[%clk 0:02:57.1]} 2. Bf4 {[%clk 0:02:59.7]}
2... c5 {[%clk 0:02:56.7]} 3. e3 {[%clk 0:02:58.7]} 3... Nc6 {[%clk 0:02:56.9]}
4. c3 {[%clk 0:02:58.7]} 4... cxd4 {[%clk 0:02:55.9]} 5. exd4 {[%clk 0:02:58.7]}
5... Bf5 {[%clk 0:02:56.6]} 6. Nd2 {[%clk 0:02:55.5]} 6... e6 {[%clk 0:02:52.7]}
7. Ngf3 {[%clk 0:02:49.8]} 7... f6 {[%clk 0:02:31.1]} 8. Qb3 {[%clk 0:02:49.5]}
8... Qd7 {[%clk 0:02:29.9]} 9. h4 {[%clk 0:02:07.1]} 9... Nge7 {[%clk
0:01:59.5]} 10. h5 {[%clk 0:02:05.5]} 10... h6 {[%clk 0:01:44.5]} 11. Be2 {[%clk
0:01:59.9]} 11... Nc8 {[%clk 0:01:34.2]} 12. Nh4 {[%clk 0:01:54.8]} 12... Bd6
{[%clk 0:01:20]} 13. Bxd6 {[%clk 0:01:49]} 13... Nxd6 {[%clk 0:01:18.3]} 14.
Nxf5 {[%clk 0:01:47.5]} 14... Nxf5 {[%clk 0:01:19.2]} 15. Bg4 {[%clk 0:01:38.9]}
15... O-O {[%clk 0:01:13.7]} 16. O-O {[%clk 0:01:18.1]} 16... Nd6 {[%clk
0:01:04.3]} 17. Rae1 {[%clk 0:01:06.2]} 17... f5 {[%clk 0:01:03.6]} 18. Be2
{[%clk 0:00:39.2]} 18... Kh8 {[%clk 0:01:00.5]} 19. Nf3 {[%clk 0:00:38]} 19...
Ne4 {[%clk 0:00:55]} 20. Qd1 {[%clk 0:00:27.6]} 20... Qe7 {[%clk 0:00:46.4]} 21.
Bb5 {[%clk 0:00:22.8]} 21... Ng5 {[%clk 0:00:34.2]} 22. Bxc6 {[%clk 0:00:16.7]}
22... Nxf3+ {[%clk 0:00:33.8]} 23. Qxf3 {[%clk 0:00:17.6]} 23... bxc6 {[%clk
0:00:34.7]} 24. Re5 {[%clk 0:00:18]} 24... Rf6 {[%clk 0:00:34.2]} 25. Rfe1
{[%clk 0:00:18.3]} 25... Qf7 {[%clk 0:00:30.5]} 26. Qe2 {[%clk 0:00:17]} 26...
Re8 {[%clk 0:00:30.1]} 27. b4 {[%clk 0:00:16.5]} 27... f4 {[%clk 0:00:28.8]} 28.
Qf3 {[%clk 0:00:13.7]} 28... Rg8 {[%clk 0:00:25]} 29. a4 {[%clk 0:00:11.4]}
29... g6 {[%clk 0:00:25.6]} 30. hxg6 {[%clk 0:00:12.3]} 30... Rfxg6 {[%clk
0:00:26.5]} 31. Kf1 {[%clk 0:00:07.1]} 31... Rxg2 {[%clk 0:00:23.9]} 32. Qxg2
{[%clk 0:00:07]} 32... Rxg2 {[%clk 0:00:24.8]} 33. Kxg2 {[%clk 0:00:07.9]} 33...
Qg6+ {[%clk 0:00:23.1]} 34. Kf3 {[%clk 0:00:07.2]} 34... Qd3+ {[%clk 0:00:23]}
35. Kxf4 {[%clk 0:00:07.4]} 35... Qxc3 {[%clk 0:00:23.9]} 36. Rxe6 {[%clk
0:00:07.7]} 36... Qxd4+ {[%clk 0:00:21.8]} 37. Kg3 {[%clk 0:00:08.1]} 37... Kg7
{[%clk 0:00:19.5]} 38. Re7+ {[%clk 0:00:05.4]} 38... Kf6 {[%clk 0:00:19.3]} 39.
R1e6+ {[%clk 0:00:05.8]} 39... Kf5 {[%clk 0:00:19.9]} 40. Re3 {[%clk 0:00:04.5]}
40... Qg4+ {[%clk 0:00:18]} 41. Kh2 {[%clk 0:00:04.2]} 41... d4 {[%clk
0:00:15.1]} 42. R3e5+ {[%clk 0:00:03.1]} 42... Kf6 {[%clk 0:00:14.8]} 43. Re4
{[%clk 0:00:03.5]} 43... Qf5 {[%clk 0:00:12.9]} 44. Re8 {[%clk 0:00:02.7]} 44...
Qxf2+ {[%clk 0:00:11.6]} 45. Kh3 {[%clk 0:00:03.3]} 45... Qf5+ {[%clk
0:00:10.9]} 46. Kg3 {[%clk 0:00:02.9]} 46... Qg5+ {[%clk 0:00:09.1]} 47. Kf3
{[%clk 0:00:03.2]} 47... Qf5+ {[%clk 0:00:08.3]} 48. Rf4 {[%clk 0:00:03.5]}
48... Kg5 {[%clk 0:00:04.7]} 49. Rxf5+ {[%clk 0:00:03.6]} 49... Kxf5 {[%clk
0:00:05.6]} 50. Rd8 {[%clk 0:00:04.1]} 1-0